[Event "FIDE Women World Blitz 2021"]
[Site "Warsaw"]
[Date "2021.12.30"]
[Round "10.8"]
[White "Zabrzanska, Weronika"]
[Black "Bartel, Marta"]
[Result "0-1"]
[ECO "B07"]
[WhiteElo "1596"]
[BlackElo "2192"]
[Annotator "NA"]
[PlyCount "126"]
[EventDate "2021.12.29"]
[EventType "swiss"]
[EventCountry "POL"]
[Tiebreak "Cut1 Buchholz"]
[SourceTitle "playchess.com"]
[Source "ChessBase"]
[SourceQuality "1"]
[TimeControl "180+2"]

1. e4 {[%emt 0:00:01]} g6 {[%emt 0:00:01]} 2. d4 {[%emt 0:00:01]} Bg7 {[%emt 0:
00:01]} 3. c3 {[%emt 0:00:01]} d6 {[%emt 0:00:03]} 4. Nf3 {[%emt 0:00:02]} Nf6
{[%emt 0:00:06]} 5. Bd3 {[%emt 0:00:01]} O-O {[%emt 0:00:08]} 6. O-O {[%emt 0:
00:03]} Nbd7 {[%emt 0:00:03]} 7. Re1 {[%emt 0:00:05]} e5 {[%emt 0:00:03]} 8.
Nbd2 {[%emt 0:00:03]} c6 {[%emt 0:00:03]} 9. Bf1 {[%emt 0:00:34]} Qc7 {[%emt 0:
00:06]} 10. a4 {[%emt 0:00:06]} a5 {[%emt 0:00:18]} 11. Nc4 {[%emt 0:00:28]}
exd4 {[%emt 0:00:44]} 12. Nxd4 {[%emt 0:00:55]} d5 {[%emt 0:00:13]} 13. exd5 {
[%emt 0:00:10]} Nxd5 {[%emt 0:00:01]} 14. Bg5 {[%emt 0:00:22]} N7f6 {[%emt 0:
00:09]} 15. Bh4 {[%emt 0:00:01]} Bg4 {[%emt 0:00:25]} 16. f3 {[%emt 0:00:05]}
Bd7 {[%emt 0:00:12]} 17. Bg3 {[%emt 0:00:04]} Qd8 {[%emt 0:00:01]} 18. Qd2 {
[%emt 0:00:20]} Nh5 {[%emt 0:00:05]} 19. Bd6 {[%emt 0:00:05]} Re8 {[%emt 0:00:
04]} 20. Rxe8+ {[%emt 0:00:01]} Bxe8 {[%emt 0:00:01]} 21. Re1 {[%emt 0:00:04]}
b5 {[%emt 0:00:06]} 22. axb5 {[%emt 0:00:03]} cxb5 {[%emt 0:00:01]} 23. Nxb5 {
[%emt 0:00:08]} Bxb5 {[%emt 0:00:20]} 24. Qxd5 Ba6 {[%emt 0:00:12]} 25. Nxa5 {
[%emt 0:00:05]} Nf6 {[%emt 0:00:06]} 26. Qc5 {[%emt 0:00:03]} Nd7 {[%emt 0:00:
02]} 27. Qb4 {[%emt 0:00:02]} Nb6 {[%emt 0:00:10]} 28. Bxa6 {[%emt 0:00:01]}
Rxa6 {[%emt 0:00:03]} 29. Nc4 {[%emt 0:00:01]} Nxc4 {[%emt 0:00:03]} 30. Qxc4 {
[%emt 0:00:01]} Rxd6 {[%emt 0:00:04]} 31. Qb5 {[%emt 0:00:02]} Rd7 {[%emt 0:00:
01]} 32. c4 {[%emt 0:00:02]} h6 {[%emt 0:00:02]} 33. c5 {[%emt 0:00:01]} Qc7 {
[%emt 0:00:03]} 34. c6 {[%emt 0:00:03]} Rd6 {[%emt 0:00:01]} 35. Rc1 {[%emt 0:
00:03]} Kh7 {[%emt 0:00:04]} 36. b4 {[%emt 0:00:01]} Bd4+ {[%emt 0:00:02]} 37.
Kh1 {[%emt 0:00:01]} Qb6 {[%emt 0:00:03]} 38. Qxb6 {[%emt 0:00:03]} Bxb6 {
[%emt 0:00:01]} 39. h4 {[%emt 0:00:01]} Rd8 {[%emt 0:00:01]} 40. b5 {[%emt 0:
00:02]} Kg7 {[%emt 0:00:02]} 41. Kh2 {[%emt 0:00:01]} Kf6 42. Kg3 {[%emt 0:00:
01]} Ke6 {[%emt 0:00:01]} 43. Kf4 {[%emt 0:00:01]} Rd4+ {[%emt 0:00:04]} 44.
Kg3 {[%emt 0:00:03]} Bc7+ {[%emt 0:00:02]} 45. Kf2 {[%emt 0:00:01]} Rb4 {
[%emt 0:00:01]} 46. Re1+ {[%emt 0:00:04]} Kf6 {[%emt 0:00:02]} 47. Rd1 {
[%emt 0:00:02]} Bb6+ {[%emt 0:00:05]} 48. Kg3 {[%emt 0:00:01]} Rxb5 {[%emt 0:
00:01]} 49. Rd7 {[%emt 0:00:04]} Rc5 {[%emt 0:00:02]} 50. Rb7 {[%emt 0:00:05]}
Rxc6 {[%emt 0:00:01]} 51. Kh3 {[%emt 0:00:02]} Bc7 {[%emt 0:00:00]} 52. Ra7 {
[%emt 0:00:02]} h5 {[%emt 0:00:01]} 53. Ra4 {[%emt 0:00:01]} Ke6 {[%emt 0:00:
01]} 54. Re4+ {[%emt 0:00:02]} Kf6 {[%emt 0:00:01]} 55. Rb4 {[%emt 0:00:01]}
Rc5 {[%emt 0:00:01]} 56. Ra4 {[%emt 0:00:02]} Bd6 {[%emt 0:00:01]} 57. Ra6 {
[%emt 0:00:01]} Ke6 {[%emt 0:00:00]} 58. Ra4 {[%emt 0:00:03]} f6 {[%emt 0:00:
02]} 59. Re4+ {[%emt 0:00:01]} Re5 {[%emt 0:00:03]} 60. Rd4 {[%emt 0:00:03]}
Bc5 {[%emt 0:00:02]} 61. Ra4 {[%emt 0:00:01]} Bf2 {[%emt 0:00:03]} 62. Ra6+ {
[%emt 0:00:04]} Kf7 {[%emt 0:00:01]} 63. Ra7+ {[%emt 0:00:01]} Bxa7 {[%emt 0:
00:01]} 0-1

[Event "FIDE Women World Blitz 2021"]
[Site "Warsaw"]
[Date "2021.12.30"]
[Round "10.9"]
[White "Socko, Monika"]
[Black "Kashlinskaya, Alina"]
[Result "0-1"]
[ECO "A45"]
[WhiteElo "2393"]
[BlackElo "2482"]
[Annotator "ChessBase"]
[PlyCount "144"]
[EventDate "2021.12.29"]
[EventType "swiss"]
[EventCountry "POL"]
[Tiebreak "Cut1 Buchholz"]
[SourceTitle "playchess.com"]
[Source "ChessBase"]
[SourceQuality "1"]
[TimeControl "180+2"]

1. d4 {[%emt 0:00:02]} Nf6 {[%emt 0:00:01]} 2. Bf4 {[%emt 0:00:02]} g6 {
[%emt 0:00:02]} 3. Nc3 {[%emt 0:00:02]} d5 {[%emt 0:00:01]} 4. Qd2 {[%emt 0:00:
02]} c6 {[%emt 0:00:05]} 5. f3 {[%emt 0:00:13]} Bg7 {[%emt 0:00:19]} 6. O-O-O {
[%emt 0:00:05]} b5 {[%emt 0:00:08]} 7. g4 {[%emt 0:00:15]} b4 {[%emt 0:00:13]}
8. Na4 {[%emt 0:00:03]} Qa5 {[%emt 0:00:01]} 9. b3 {[%emt 0:00:01]} Nbd7 {
[%emt 0:00:01]} 10. Kb1 {[%emt 0:00:16]} Nb6 {[%emt 0:00:11]} 11. Nb2 {[%emt 0:
00:22]} h5 {[%emt 0:00:10]} 12. Nd3 {[%emt 0:00:33]} hxg4 {[%emt 0:00:24]} 13.
Qxb4 {[%emt 0:00:04]} Qxb4 {[%emt 0:00:07]} 14. Nxb4 {[%emt 0:00:00]} Bd7 {
[%emt 0:00:43]} 15. Na6 {[%emt 0:00:08]} Rc8 {[%emt 0:00:02]} 16. Bg2 {[%emt 0:
00:04]} gxf3 {[%emt 0:00:07]} 17. exf3 {[%emt 0:00:07]} Bf5 {[%emt 0:00:02]}
18. Ne2 {[%emt 0:00:04]} Nh5 {[%emt 0:00:10]} 19. Be3 {[%emt 0:00:01]} e5 {
[%emt 0:00:23]} 20. dxe5 {[%emt 0:00:19]} Bxe5 {[%emt 0:00:01]} 21. Bc5 {
[%emt 0:00:01]} Nd7 {[%emt 0:00:10]} 22. Bf2 {[%emt 0:00:10]} O-O {[%emt 0:00:
03]} 23. Ng3 {[%emt 0:00:03]} Nxg3 {[%emt 0:00:11]} 24. hxg3 {[%emt 0:00:01]}
g5 {[%emt 0:00:06]} 25. f4 {[%emt 0:00:02]} Bf6 {[%emt 0:00:02]} 26. Bh3 {
[%emt 0:00:13]} g4 {[%emt 0:00:01]} 27. Bg2 {[%emt 0:00:00]} Rfe8 {[%emt 0:00:
01]} 28. Bf1 {[%emt 0:00:06]} Be4 {[%emt 0:00:02]} 29. Rg1 {[%emt 0:00:01]} Bf3
{[%emt 0:00:00]} 30. Rc1 {[%emt 0:00:04]} Bc3 {[%emt 0:00:02]} 31. Bg2 {
[%emt 0:00:08]} Nf6 {[%emt 0:00:03]} 32. Nc5 {[%emt 0:00:08]} Bd2 {[%emt 0:00:
04]} 33. Bxf3 {[%emt 0:00:01]} Bxc1 {[%emt 0:00:03]} 34. Kxc1 {[%emt 0:00:14]}
gxf3 {[%emt 0:00:01]} 35. g4 {[%emt 0:00:01]} Re2 {[%emt 0:00:01]} 36. Bd4 {
[%emt 0:00:05]} f2 {[%emt 0:00:02]} 37. Rd1 {[%emt 0:00:03]} Nxg4 {[%emt 0:00:
02]} 38. Nd3 {[%emt 0:00:01]} Rce8 {[%emt 0:00:02]} 39. Bc3 {[%emt 0:00:05]} d4
{[%emt 0:00:03]} 40. Bxd4 {[%emt 0:00:02]} Nh2 {[%emt 0:00:06]} 41. Nxf2 {
[%emt 0:00:02]} Nf3 {[%emt 0:00:00]} 42. Bxa7 {[%emt 0:00:02]} Re1 {[%emt 0:00:
02]} 43. Rxe1 {[%emt 0:00:03]} Rxe1+ {[%emt 0:00:01]} 44. Kb2 {[%emt 0:00:01]}
Re2 {[%emt 0:00:01]} 45. Nd3 {[%emt 0:00:02]} Re4 {[%emt 0:00:03]} 46. a4 {
[%emt 0:00:01]} Kf8 {[%emt 0:00:01]} 47. a5 {[%emt 0:00:01]} Ke8 {[%emt 0:00:
01]} 48. a6 {[%emt 0:00:02]} Nd4 {[%emt 0:00:07]} 49. Bxd4 {[%emt 0:00:01]}
Rxd4 {[%emt 0:00:00]} 50. a7 {[%emt 0:00:01]} Rd8 {[%emt 0:00:01]} 51. Nb4 {
[%emt 0:00:01]} Kd7 {[%emt 0:00:02]} 52. Na6 {[%emt 0:00:01]} Ra8 {[%emt 0:00:
01]} 53. Nc5+ {[%emt 0:00:02]} Kc7 {[%emt 0:00:03]} 54. Kc3 {[%emt 0:00:02]}
Rxa7 {[%emt 0:00:01]} 55. Kd4 {[%emt 0:00:01]} Kd6 {[%emt 0:00:01]} 56. Ne4+ {
[%emt 0:00:01]} Ke6 {[%emt 0:00:02]} 57. c4 {[%emt 0:00:02]} Kf5 {[%emt 0:00:
02]} 58. Nd6+ {[%emt 0:00:05]} Kxf4 {[%emt 0:00:00]} 59. Kc5 {[%emt 0:00:00]}
Ke5 {[%emt 0:00:06]} 60. Nc8 {[%emt 0:00:04]} Ra3 {[%emt 0:00:02]} 61. b4 {
[%emt 0:00:00]} f5 {[%emt 0:00:03]} 62. Ne7 {[%emt 0:00:02]} f4 {[%emt 0:00:02]
} 63. Nxc6+ {[%emt 0:00:01]} Ke4 {[%emt 0:00:00]} 64. b5 {[%emt 0:00:02]} f3 {
[%emt 0:00:02]} 65. b6 {[%emt 0:00:02]} f2 {[%emt 0:00:02]} 66. b7 {[%emt 0:00:
01]} Rb3 {[%emt 0:00:01]} 67. Nd4 {[%emt 0:00:05]} Rxb7 {[%emt 0:00:03]} 68.
Ne2 {[%emt 0:00:01]} Kf3 {[%emt 0:00:03]} 69. Nd4+ {[%emt 0:00:01]} Kg2 {
[%emt 0:00:03]} 70. Nc2 {[%emt 0:00:02]} Re7 {[%emt 0:00:01]} 71. Kd6 {[%emt 0:
00:01]} Re2 {[%emt 0:00:01]} 72. Nd4 {[%emt 0:00:04]} Rd2 {[%emt 0:00:01]} 0-1

[Event "FIDE Women World Blitz 2021"]
[Site "Warsaw"]
[Date "2021.12.30"]
[Round "10.9"]
[White "Movsesian, Julia"]
[Black "Goraj, Barbara"]
[Result "1-0"]
[ECO "B53"]
[WhiteElo "2322"]
[BlackElo "1902"]
[Annotator "NA"]
[PlyCount "171"]
[EventDate "2021.12.29"]
[EventType "swiss"]
[EventCountry "POL"]
[Tiebreak "Cut1 Buchholz"]
[SourceTitle "playchess.com"]
[Source "ChessBase"]
[SourceQuality "1"]
[TimeControl "180+2"]

1. e4 {[%emt 0:00:01]} c5 {[%emt 0:00:01]} 2. Nf3 {[%emt 0:00:01]} Nc6 {
[%emt 0:00:01]} 3. Nc3 {[%emt 0:00:01]} d6 {[%emt 0:00:01]} 4. Bb5 {[%emt 0:00:
01]} Bd7 {[%emt 0:00:26]} 5. Bxc6 {[%emt 0:00:02]} Bxc6 {[%emt 0:00:06]} 6. d4
{[%emt 0:00:01]} cxd4 {[%emt 0:00:01]} 7. Qxd4 {[%emt 0:00:01]} Nf6 {[%emt 0:
00:05]} 8. Bg5 {[%emt 0:00:01]} Nd7 {[%emt 0:00:28]} 9. O-O-O {[%emt 0:00:09]}
h6 {[%emt 0:00:03]} 10. Bh4 {[%emt 0:00:03]} Qb6 {[%emt 0:00:03]} 11. Qd2 {
[%emt 0:00:16]} g5 {[%emt 0:00:17]} 12. Bg3 {[%emt 0:00:01]} Bg7 {[%emt 0:00:
05]} 13. Nd4 {[%emt 0:00:35]} Bxd4 {[%emt 0:00:42]} 14. Qxd4 {[%emt 0:00:00]}
Qxd4 {[%emt 0:00:02]} 15. Rxd4 {[%emt 0:00:01]} Rc8 {[%emt 0:00:03]} 16. f3 {
[%emt 0:00:03]} Nc5 {[%emt 0:00:15]} 17. h4 {[%emt 0:00:07]} Ne6 {[%emt 0:00:
20]} 18. Rd2 {[%emt 0:00:06]} f6 {[%emt 0:00:14]} 19. hxg5 {[%emt 0:00:07]}
fxg5 {[%emt 0:00:02]} 20. Nd5 {[%emt 0:00:06]} Bxd5 {[%emt 0:00:02]} 21. exd5 {
[%emt 0:00:00]} Ng7 {[%emt 0:00:03]} 22. Re2 {[%emt 0:00:08]} Nf5 {[%emt 0:00:
01]} 23. Bf2 {[%emt 0:00:01]} Kf7 {[%emt 0:00:19]} 24. a3 {[%emt 0:00:30]} a6 {
[%emt 0:00:00]} 25. g4 {[%emt 0:00:19]} Ng7 {[%emt 0:00:01]} 26. Bd4 {[%emt 0:
00:01]} Rce8 {[%emt 0:00:04]} 27. Kd2 {[%emt 0:00:06]} Rh7 {[%emt 0:00:03]} 28.
Kd3 {[%emt 0:00:07]} e5 {[%emt 0:00:01]} 29. dxe6+ {[%emt 0:00:02]} Nxe6 {
[%emt 0:00:01]} 30. Be3 {[%emt 0:00:08]} Rc8 {[%emt 0:00:04]} 31. c3 {[%emt 0:
00:04]} Kf6 {[%emt 0:00:02]} 32. Rhe1 {[%emt 0:00:03]} Re7 {[%emt 0:00:05]} 33.
Bd4+ {[%emt 0:00:07]} Kf7 {[%emt 0:00:02]} 34. Kd2 {[%emt 0:00:02]} Rce8 {
[%emt 0:00:01]} 35. Be3 {[%emt 0:00:07]} b5 {[%emt 0:00:02]} 36. Bf2 {[%emt 0:
00:10]} Nf4 {[%emt 0:00:02]} 37. Rxe7+ {[%emt 0:00:08]} Rxe7 {[%emt 0:00:01]}
38. Rxe7+ {[%emt 0:00:01]} Kxe7 {[%emt 0:00:01]} 39. Bd4 {[%emt 0:00:00]} Kf7 {
[%emt 0:00:04]} 40. b3 {[%emt 0:00:05]} h5 {[%emt 0:00:02]} 41. gxh5 Nxh5 {
[%emt 0:00:02]} 42. Kd3 {[%emt 0:00:06]} Ke6 {[%emt 0:00:01]} 43. c4 {[%emt 0:
00:01]} Nf4+ {[%emt 0:00:03]} 44. Ke4 {[%emt 0:00:03]} d5+ {[%emt 0:00:02]} 45.
cxd5+ {[%emt 0:00:02]} Nxd5 {[%emt 0:00:01]} 46. Bg7 {[%emt 0:00:03]} Ne7 {
[%emt 0:00:03]} 47. Bh6 {[%emt 0:00:07]} Kf6 {[%emt 0:00:01]} 48. Bf8 {[%emt 0:
00:01]} Ng6 {[%emt 0:00:03]} 49. Bd6 {[%emt 0:00:02]} Ke6 {[%emt 0:00:01]} 50.
Bc7 {[%emt 0:00:01]} Ne7 {[%emt 0:00:02]} 51. Bd8 {[%emt 0:00:02]} Nd5 {
[%emt 0:00:04]} 52. Bxg5 {[%emt 0:00:02]} Nc3+ {[%emt 0:00:03]} 53. Kd3 {
[%emt 0:00:00]} Nd5 {[%emt 0:00:01]} 54. Bd2 {[%emt 0:00:02]} Nc7 {[%emt 0:00:
02]} 55. Ke4 {[%emt 0:00:01]} Ne8 {[%emt 0:00:02]} 56. f4 {[%emt 0:00:01]} Nf6+
{[%emt 0:00:02]} 57. Kd4 {[%emt 0:00:01]} Kd6 {[%emt 0:00:01]} 58. Bb4+ {
[%emt 0:00:03]} Ke6 {[%emt 0:00:01]} 59. Kc5 {[%emt 0:00:00]} Kd7 {[%emt 0:00:
05]} 60. Kb6 {[%emt 0:00:03]} Nd5+ {[%emt 0:00:01]} 61. Kxa6 {[%emt 0:00:01]}
Nxf4 {[%emt 0:00:03]} 62. Kxb5 {[%emt 0:00:01]} Kc7 {[%emt 0:00:01]} 63. Kc4 {
[%emt 0:00:01]} Kb6 {[%emt 0:00:02]} 64. Bc5+ {[%emt 0:00:01]} Ka6 {[%emt 0:00:
01]} 65. b4 {[%emt 0:00:01]} Ne6 {[%emt 0:00:01]} 66. a4 {[%emt 0:00:01]} Kb7 {
[%emt 0:00:03]} 67. b5 {[%emt 0:00:01]} Nc7 {[%emt 0:00:02]} 68. Be3 {[%emt 0:
00:03]} Ne6 {[%emt 0:00:01]} 69. a5 {[%emt 0:00:02]} Nc7 {[%emt 0:00:03]} 70.
b6 {[%emt 0:00:05]} Ne6 {[%emt 0:00:04]} 71. Kb5 {[%emt 0:00:00]} Nc7+ {
[%emt 0:00:02]} 72. Ka4 {[%emt 0:00:03]} Nd5 {[%emt 0:00:02]} 73. Bc5 {[%emt 0:
00:05]} Nc3+ {[%emt 0:00:02]} 74. Kb4 {[%emt 0:00:01]} Nd5+ {[%emt 0:00:01]}
75. Kc4 {[%emt 0:00:01]} Nc7 {[%emt 0:00:01]} 76. Be3 {[%emt 0:00:04]} Ne6 {
[%emt 0:00:03]} 77. Bf2 {[%emt 0:00:03]} Nc7 {[%emt 0:00:01]} 78. Bg3 {[%emt 0:
00:01]} Ne6 {[%emt 0:00:04]} 79. Kb4 {[%emt 0:00:03]} Ka6 {[%emt 0:00:02]} 80.
Kc4 {[%emt 0:00:01]} Kb7 {[%emt 0:00:01]} 81. Kd5 {[%emt 0:00:02]} Nd8 {
[%emt 0:00:01]} 82. Bc7 {[%emt 0:00:03]} Nf7 {[%emt 0:00:08]} 83. Kc5 Ng5 {
[%emt 0:00:00]} 84. Kb5 {[%emt 0:00:03]} Ne6 {[%emt 0:00:00]} 85. a6+ {[%emt 0:
00:01]} Ka8 {[%emt 0:00:01]} 86. b7+ {[%emt 0:00:01]} 1-0

[Event "FIDE Women World Blitz 2021"]
[Site "Warsaw"]
[Date "2021.12.30"]
[Round "10.10"]
[White "Kiolbasa, Oliwia"]
[Black "Zatonskih, Anna"]
[Result "1-0"]
[ECO "C02"]
[WhiteElo "2403"]
[BlackElo "2394"]
[Annotator "NA"]
[PlyCount "49"]
[EventDate "2021.12.29"]
[EventType "swiss"]
[EventCountry "POL"]
[Tiebreak "Cut1 Buchholz"]
[SourceTitle "playchess.com"]
[Source "ChessBase"]
[SourceQuality "1"]
[TimeControl "180+2"]

1. e4 {[%emt 0:00:01]} e6 {[%emt 0:00:01]} 2. d4 {[%emt 0:00:01]} d5 {[%emt 0:
00:01]} 3. e5 {[%emt 0:00:01]} c5 {[%emt 0:00:00]} 4. c3 {[%emt 0:00:01]} Qb6 {
[%emt 0:00:02]} 5. Nf3 {[%emt 0:00:03]} Bd7 {[%emt 0:00:01]} 6. Bd3 {[%emt 0:
00:01]} cxd4 {[%emt 0:00:34]} 7. O-O {[%emt 0:00:03]} Nc6 {[%emt 0:00:01]} 8.
Re1 {[%emt 0:00:01]} Nge7 {[%emt 0:00:03]} 9. h4 {[%emt 0:00:02]} a6 {[%emt 0:
00:02]} 10. Nbd2 {[%emt 0:00:10]} dxc3 {[%emt 0:00:07]} 11. bxc3 {[%emt 0:00:
01]} Qc7 {[%emt 0:00:56]} 12. Nb3 {[%emt 0:00:02]} Ng6 {[%emt 0:00:18]} 13. Qe2
{[%emt 0:00:01]} f6 {[%emt 0:00:01]} 14. exf6 {[%emt 0:00:05]} gxf6 {[%emt 0:
00:01]} 15. c4 {[%emt 0:00:11]} O-O-O {[%emt 0:00:02]} 16. cxd5 {[%emt 0:00:02]
} exd5 {[%emt 0:00:01]} 17. Be3 {[%emt 0:00:49]} Nge5 {[%emt 0:00:20]} 18. Nxe5
{[%emt 0:00:25]} fxe5 {[%emt 0:00:01]} 19. Rec1 {[%emt 0:00:08]} d4 {[%emt 0:
00:21]} 20. Bd2 {[%emt 0:00:10]} Ba3 {[%emt 0:00:12]} 21. Ba5 {[%emt 0:00:39]}
Qd6 {[%emt 0:00:06]} 22. Bxa6 {[%emt 0:00:18]} Kb8 {[%emt 0:00:24]} 23. Bxb7 {
[%emt 0:00:16]} Bxc1 {[%emt 0:00:10]} 24. Qa6 {[%emt 0:00:09]} Na7 {[%emt 0:00:
02]} 25. Qxd6+ {[%emt 0:00:01]} 1-0

[Event "FIDE Women World Blitz 2021"]
[Site "Warsaw"]
[Date "2021.12.30"]
[Round "10.10"]
[White "Katkov, Michelle"]
[Black "Nurgali, Nazerke"]
[Result "0-1"]
[ECO "E54"]
[WhiteElo "1651"]
[BlackElo "2267"]
[Annotator "NA"]
[PlyCount "80"]
[EventDate "2021.12.29"]
[EventType "swiss"]
[EventCountry "POL"]
[Tiebreak "Cut1 Buchholz"]
[SourceTitle "playchess.com"]
[Source "ChessBase"]
[SourceQuality "1"]
[TimeControl "180+2"]

1. e4 {[%emt 0:00:01]} c6 {[%emt 0:00:01]} 2. d4 {[%emt 0:00:04]} d5 {[%emt 0:
00:01]} 3. exd5 {[%emt 0:00:02]} cxd5 {[%emt 0:00:01]} 4. c4 {[%emt 0:00:01]}
e6 {[%emt 0:00:01]} 5. Nc3 {[%emt 0:00:02]} Nf6 {[%emt 0:00:01]} 6. Nf3 {
[%emt 0:00:02]} Bb4 {[%emt 0:00:02]} 7. Bd3 {[%emt 0:00:15]} O-O {[%emt 0:00:
04]} 8. O-O {[%emt 0:00:03]} b6 {[%emt 0:00:03]} 9. cxd5 {[%emt 0:00:19]} exd5
{[%emt 0:00:09]} 10. Bg5 {[%emt 0:00:09]} Be6 {[%emt 0:00:03]} 11. Ne5 {
[%emt 0:00:09]} h6 {[%emt 0:00:06]} 12. Bh4 {[%emt 0:00:04]} Be7 {[%emt 0:00:
10]} 13. Bc2 {[%emt 0:00:13]} Nbd7 {[%emt 0:00:27]} 14. Qd3 {[%emt 0:00:06]}
Nxe5 {[%emt 0:00:48]} 15. dxe5 {[%emt 0:00:03]} Ne4 {[%emt 0:00:01]} 16. Nxe4 {
[%emt 0:00:42]} dxe4 {[%emt 0:00:15]} 17. Qxe4 {[%emt 0:00:07]} g6 {[%emt 0:00:
02]} 18. Rfd1 {[%emt 0:00:17]} Qe8 {[%emt 0:00:04]} 19. Bxe7 {[%emt 0:00:11]}
Qxe7 {[%emt 0:00:01]} 20. Rd6 {[%emt 0:00:08]} Bf5 {[%emt 0:00:10]} 21. Qe2 {
[%emt 0:00:23]} Bxc2 {[%emt 0:00:01]} 22. Qxc2 {[%emt 0:00:01]} Qxe5 {[%emt 0:
00:02]} 23. Rad1 {[%emt 0:00:05]} Rac8 {[%emt 0:00:06]} 24. Qd2 {[%emt 0:00:02]
} Kg7 {[%emt 0:00:11]} 25. g3 {[%emt 0:00:01]} h5 {[%emt 0:00:06]} 26. Rd7 {
[%emt 0:00:01]} a6 {[%emt 0:00:13]} 27. Rb7 {[%emt 0:00:12]} b5 {[%emt 0:00:02]
} 28. b3 {[%emt 0:00:03]} h4 {[%emt 0:00:04]} 29. Qd4 {[%emt 0:00:04]} Qxd4 {
[%emt 0:00:03]} 30. Rxd4 {[%emt 0:00:01]} h3 {[%emt 0:00:04]} 31. Kf1 {[%emt 0:
00:07]} Rfe8 {[%emt 0:00:04]} 32. Rd1 {[%emt 0:00:02]} Rc2 {[%emt 0:00:02]} 33.
Re1 {[%emt 0:00:04]} Rxe1+ 34. Kxe1 {[%emt 0:00:01]} Rxa2 {[%emt 0:00:08]} 35.
Ra7 {[%emt 0:00:00]} Ra1+ {[%emt 0:00:04]} 36. Ke2 {[%emt 0:00:01]} Rh1 {
[%emt 0:00:03]} 37. Rxa6 {[%emt 0:00:01]} Rxh2 {[%emt 0:00:05]} 38. Kf3 {
[%emt 0:00:07]} Rh1 {[%emt 0:00:03]} 39. Rb6 {[%emt 0:00:03]} Rb1 {[%emt 0:00:
05]} 40. Rxb5 {[%emt 0:00:01]} h2 {[%emt 0:00:02]} 0-1

[Event "FIDE Women World Blitz 2021"]
[Site "Warsaw"]
[Date "2021.12.30"]
[Round "10.11"]
[White "Buksa, Nataliya"]
[Black "Zhukova, Natalia"]
[Result "1-0"]
[ECO "C60"]
[WhiteElo "2199"]
[BlackElo "2331"]
[Annotator "NA"]
[PlyCount "91"]
[EventDate "2021.12.29"]
[EventType "swiss"]
[EventCountry "POL"]
[Tiebreak "Cut1 Buchholz"]
[SourceTitle "playchess.com"]
[Source "ChessBase"]
[SourceQuality "1"]
[TimeControl "180+2"]

1. e4 {[%emt 0:00:01]} e5 {[%emt 0:00:01]} 2. Nf3 {[%emt 0:00:01]} Nc6 {
[%emt 0:00:01]} 3. Bb5 {[%emt 0:00:01]} a6 {[%emt 0:00:03]} 4. Ba4 {[%emt 0:00:
01]} Nge7 {[%emt 0:00:19]} 5. O-O {[%emt 0:00:31]} g6 {[%emt 0:00:01]} 6. c3 {
[%emt 0:00:07]} Bg7 {[%emt 0:00:02]} 7. d4 {[%emt 0:00:01]} exd4 {[%emt 0:00:
11]} 8. cxd4 {[%emt 0:00:01]} b5 {[%emt 0:00:02]} 9. Bb3 {[%emt 0:00:02]} O-O {
[%emt 0:00:03]} 10. d5 {[%emt 0:00:14]} Na5 {[%emt 0:00:01]} 11. Bc2 {[%emt 0:
00:19]} Nc4 {[%emt 0:00:12]} 12. Nc3 {[%emt 0:00:01]} d6 {[%emt 0:00:03]} 13.
Rb1 {[%emt 0:00:09]} h6 {[%emt 0:00:17]} 14. h3 {[%emt 0:00:03]} Bb7 {[%emt 0:
00:16]} 15. Ne2 {[%emt 0:00:09]} c6 {[%emt 0:00:06]} 16. b3 {[%emt 0:00:09]}
Nb6 {[%emt 0:00:08]} 17. dxc6 {[%emt 0:00:04]} Nxc6 {[%emt 0:00:11]} 18. Bb2 {
[%emt 0:00:01]} Ne5 {[%emt 0:00:01]} 19. Nf4 {[%emt 0:00:50]} Rc8 {[%emt 0:00:
08]} 20. Nd4 {[%emt 0:00:20]} Re8 {[%emt 0:00:35]} 21. Nde2 {[%emt 0:00:11]}
Nbd7 {[%emt 0:00:11]} 22. Nd5 {[%emt 0:00:02]} Nc5 {[%emt 0:00:04]} 23. Ng3 {
[%emt 0:00:06]} h5 {[%emt 0:00:09]} 24. f4 {[%emt 0:00:02]} Ned7 {[%emt 0:00:
05]} 25. Bxg7 {[%emt 0:00:02]} Kxg7 {[%emt 0:00:01]} 26. Qd4+ {[%emt 0:00:01]}
f6 {[%emt 0:00:05]} 27. Rbc1 {[%emt 0:00:14]} h4 {[%emt 0:00:06]} 28. Ne2 {
[%emt 0:00:01]} Bxd5 29. Qxd5 {[%emt 0:00:01]} Nb6 {[%emt 0:00:11]} 30. Qd4 {
[%emt 0:00:01]} Ne6 {[%emt 0:00:05]} 31. Qe3 {[%emt 0:00:01]} Nc5 {[%emt 0:00:
11]} 32. Nd4 {[%emt 0:00:02]} Nd5 {[%emt 0:00:05]} 33. Qf3 {[%emt 0:00:02]} Nb4
{[%emt 0:00:02]} 34. Bb1 {[%emt 0:00:02]} Qb6 {[%emt 0:00:01]} 35. Kh1 {
[%emt 0:00:01]} Nxe4 {[%emt 0:00:07]} 36. Bxe4 {[%emt 0:00:12]} Qxd4 {[%emt 0:
00:01]} 37. Rxc8 {[%emt 0:00:02]} Rxc8 38. Bxg6 {[%emt 0:00:01]} Rc3 {[%emt 0:
00:06]} 39. Qg4 {[%emt 0:00:01]} Rg3 {[%emt 0:00:01]} 40. Qd7+ {[%emt 0:00:03]}
Kxg6 {[%emt 0:00:02]} 41. f5+ {[%emt 0:00:01]} Kh6 {[%emt 0:00:01]} 42. Qe8 {
[%emt 0:00:02]} Rg7 {[%emt 0:00:06]} 43. Qh8+ {[%emt 0:00:02]} Rh7 {[%emt 0:00:
01]} 44. Qf8+ {[%emt 0:00:01]} Kh5 {[%emt 0:00:01]} 45. Qe8+ {[%emt 0:00:01]}
Kh6 {[%emt 0:00:02]} 46. Qg6# {[%emt 0:00:01]} 1-0

[Event "FIDE Women World Blitz 2021"]
[Site "Warsaw"]
[Date "2021.12.30"]
[Round "10.11"]
[White "Heredia Serrano, Carla"]
[Black "Kolaric, Spela"]
[Result "1/2-1/2"]
[ECO "D00"]
[WhiteElo "2138"]
[BlackElo "2178"]
[Annotator "NA"]
[PlyCount "70"]
[EventDate "2021.12.29"]
[EventType "swiss"]
[EventCountry "POL"]
[Tiebreak "Cut1 Buchholz"]
[SourceTitle "playchess.com"]
[Source "ChessBase"]
[SourceQuality "1"]
[TimeControl "180+2"]

1. d4 {[%emt 0:00:01]} Nf6 {[%emt 0:00:01]} 2. Nc3 {[%emt 0:00:02]} d5 {
[%emt 0:00:01]} 3. Bf4 {[%emt 0:00:01]} c6 {[%emt 0:00:03]} 4. e3 {[%emt 0:00:
03]} Bf5 {[%emt 0:00:03]} 5. f3 {[%emt 0:00:03]} e6 {[%emt 0:00:22]} 6. g4 {
[%emt 0:00:02]} Bg6 {[%emt 0:00:01]} 7. h4 {[%emt 0:00:00]} h6 {[%emt 0:00:09]}
8. Bd3 {[%emt 0:00:06]} Bxd3 {[%emt 0:00:04]} 9. Qxd3 {[%emt 0:00:01]} Qb6 {
[%emt 0:00:11]} 10. O-O-O {[%emt 0:00:05]} Nbd7 {[%emt 0:00:03]} 11. Nge2 {
[%emt 0:00:10]} O-O-O {[%emt 0:00:05]} 12. Kb1 {[%emt 0:00:51]} Ne8 {[%emt 0:
00:06]} 13. e4 {[%emt 0:00:13]} Nd6 {[%emt 0:00:07]} 14. Bxd6 {[%emt 0:00:27]}
Bxd6 {[%emt 0:00:01]} 15. Nc1 {[%emt 0:00:12]} Rhe8 {[%emt 0:00:35]} 16. e5 {
[%emt 0:00:04]} Be7 {[%emt 0:00:05]} 17. Nb3 {[%emt 0:00:03]} c5 {[%emt 0:00:
13]} 18. dxc5 {[%emt 0:00:02]} Nxc5 {[%emt 0:00:01]} 19. Nxc5 {[%emt 0:00:03]}
Qxc5 {[%emt 0:00:02]} 20. Qd4 {[%emt 0:00:08]} Qxd4 {[%emt 0:00:05]} 21. Rxd4 {
[%emt 0:00:00]} Bc5 {[%emt 0:00:00]} 22. Rd3 {[%emt 0:00:04]} a6 {[%emt 0:00:
03]} 23. f4 {[%emt 0:00:02]} Kc7 {[%emt 0:00:04]} 24. a3 {[%emt 0:00:02]} b5 {
[%emt 0:00:04]} 25. b4 {[%emt 0:00:05]} Bb6 {[%emt 0:00:03]} 26. Rhd1 {[%emt 0:
00:09]} Kb7 {[%emt 0:00:01]} 27. Ne2 {[%emt 0:00:06]} Rc8 {[%emt 0:00:04]} 28.
Nd4 {[%emt 0:00:06]} Rc4 {[%emt 0:00:03]} 29. Kb2 {[%emt 0:00:03]} Rec8 {
[%emt 0:00:00]} 30. R1d2 {[%emt 0:00:07]} Bxd4+ {[%emt 0:00:30]} 31. Rxd4 {
[%emt 0:00:01]} Rc3 {[%emt 0:00:01]} 32. R4d3 {[%emt 0:00:04]} R3c4 {[%emt 0:
00:01]} 33. Rd4 {[%emt 0:00:03]} Rc3 {[%emt 0:00:01]} 34. R4d3 {[%emt 0:00:24]}
R3c4 {[%emt 0:00:02]} 35. Rd4 {[%emt 0:00:01]} Rc3 {[%emt 0:00:05]} 1/2-1/2